[Event "FIDE WSTC Open 50 2025"]
[Site "Prague"]
[Date "2025.02.17"]
[Round "1.19"]
[White "Son, Asya"]
[Black "Tikzhanov, Yerlan"]
[Result "0-1"]
[Annotator "TA"]
[ECO "C03"]
[WhiteElo "2097"]
[BlackElo "2323"]
[PlyCount "64"]
[EventDate "2025.02.17"]
[EventType "team-tourn"]
[EventCountry "CZE"]
[SourceTitle "playchess.com"]
[Source "ChessBase"]
[SourceQuality "1"]
[TimeControl "40/5400+30:1800+30"]

{[%evp 9,64,11,19,-5,-8,-13,5,3,-10,-18,-26,-20,-12,-19,5,0,1,4,2,-35,-17,-38,-34,-36,-8,-40,-31,-39,-36,-78,-82,-95,-73,-111,-102,-116,-121,-144,-148,-393,-246,-543,-559,-610,-566,-568,-561,-2358,-2396,-1636,-1413,-5298,-5214,-29989,-29988,-29996,-29997]} 1. e4 {[%emt 0:00:03]} e6 {[%emt 0:00:11]} 2. d4 {[%emt 0:00:19]} d5 {[%emt 0:00:05]} 3. Nd2 {[%emt 0:00:24]} a6 {[%emt 0:00:12]} 4. Ngf3 {[%emt 0:04:29]} c5 {[%emt 0:00:10]} 5. exd5 {[%emt 0:01:23]} exd5 {[%emt 0:00:11]} 6. Bd3 {[%emt 0:03:30] C08: French Tarrasch: 3...c5 4 exd5 exd5 sidelines.} c4 {[%emt 0:01:15]} 7. Be2 {[%emt 0:01:04]} Nf6 {[%emt 0:00:22]} 8. O-O {[%emt 0:09:40] The position is equal.} Bd6 {[%emt 0:03:14]} 9. c3 {[%emt 0:04:13]} Nc6 {[%emt 0:01:53]} 10. b3 {[%emt 0:00:51]} b5 {[%emt 0:00:37]} 11. a4 {[%emt 0:05:45] aiming for axb5.} Bb7 {[%emt 0:00:16]} 12. Ba3 $146 {[%emt 0:02:26]} (12. Re1 O-O 13. bxc4 bxc4 14. Ba3 Bxa3 15. Rxa3 Re8 16. Bf1 Rxe1 17. Qxe1 Bc8 18. Ra1 {1-0 Orozbaev,E (1973)-Bilokha,S (2137) Bogdanovich Memorial Qual 1 blitz 2021 (1)}) 12... O-O {[%emt 0:01:21]} 13. Bxd6 {[%emt 0:02:37]} Qxd6 {[%emt 0:00:07]} 14. b4 {[%emt 0:01:12]} Rae8 {[%emt 0:04:45]} 15. Re1 {[%emt 0:04:43]} Ne4 {[%emt 0:08:35]} 16. Qc2 {[%emt 0:02:22]} Re7 {[%emt 0:02:36]} 17. Nf1 {[%emt 0:06:05]} Rfe8 {[%emt 0:04:41][%cal Oe4c3]} 18. Ng3 {[%emt 0:06:34]} g6 {[%emt 0:00:53] Wards off Nf5} 19. Bf1 {[%emt 0:09:13]} f5 {[%emt 0:15:39][%cal Bf7f5,Bf5f4][%mdl 32]} 20. axb5 {[%emt 0:01:05]} axb5 {[%emt 0:00:06]} 21. Qc1 {[%emt 0:04:14] [#]} f4 $1 {[%emt 0:03:17]} 22. Ne2 {[%emt 0:01:34][%csl Oe4] Strong Square Black (e4)} g5 $36 {[%emt 0:01:03][%mdl 2048] Black is in control.} 23. g3 {[%emt 0:07:50]} Rf8 {[%emt 0:03:35] ...fxg3 is the strong threat. Black is much more active.} 24. g4 {[%emt 0:05:32] Loses the game.} (24. Bg2 $17) 24... Bc8 {[%emt 0:05:38]} 25. h3 $2 {[%emt 0:00:19] [#]} (25. Ne5) 25... h5 $1 $19 {[%emt 0:00:22][%mdl 512]} 26. gxh5 {[%emt 0:06:05]} (26. Ra8 hxg4) 26... Qh6 {[%emt 0:03:21]} 27. Ra8 {[%emt 0:04:50]} Qxh5 {[%emt 0:00:47]} 28. Ne5 {[%emt 0:00:55]} Nxe5 {[%emt 0:02:46]} 29. dxe5 {[%emt 0:00:02]} Bxh3 {[%emt 0:00:15] ( -> ...Qf3)} 30. Rxf8+ {[%emt 0:00:05]} Kxf8 {[%emt 0:00:04]} 31. Bxh3 {[%emt 0:03:35]} Qxh3 {[%emt 0:00:08]} 32. Nd4 {[%emt 0:02:07]} Rh7 {[%emt 0:00:26] Weighted Error Value: White=0.84/Black=0.34  Loses game:     	White=1     	---        Mistake:       	White=1     	---        Inaccurate:     	White=5     	Black=2      OK:         	White=6     	Black=8      Best:        	---       	Black=1      Strong:       	---       	Black=1      Brilliant:      	---       	Black=1} 0-1

[Event "FIDE WSTC Open 50 2025"]
[Site "Prague"]
[Date "2025.02.17"]
[Round "1.20"]
[White "Min, Valeriy"]
[Black "Gaichenya, Yelena"]
[Result "1-0"]
[Annotator "TA"]
[ECO "A05"]
[WhiteElo "2273"]
[BlackElo "1990"]
[PlyCount "79"]
[EventDate "2025.02.17"]
[EventType "team-tourn"]
[EventCountry "CZE"]
[SourceTitle "playchess.com"]
[Source "ChessBase"]
[SourceQuality "1"]
[TimeControl "40/5400+30:1800+30"]

{[%evp 19,79,27,48,30,26,0,0,0,0,0,25,14,43,18,33,30,51,53,43,19,20,20,23,20,18,15,22,10,37,39,345,367,368,384,371,382,375,360,361,354,396,400,549,549,534,525,645,606,557,539,665,564,631,559,612,606,791,770,996,689,5618,5614]} 1. Nf3 {[%emt 0:00:07]} Nf6 {[%emt 0:00:49]} 2. c4 {[%emt 0:00:12]} c5 {[%emt 0:01:22]} 3. g3 {[%emt 0:00:21]} Nc6 {[%emt 0:01:26]} 4. Bg2 {[%emt 0:01:30]} d6 {[%emt 0:00:59]} 5. d4 {[%emt 0:00:49]} cxd4 {[%emt 0:03:09]} 6. Nxd4 {[%emt 0:00:10]} Bd7 {[%emt 0:00:37]} 7. Nc3 {[%emt 0:02:11]} g6 {[%emt 0:02:47]} 8. Nc2 {[%emt 0:01:42]} Bg7 {[%emt 0:01:13]} 9. O-O {[%emt 0:00:39]} O-O {[%emt 0:00:05]} 10. b3 {[%emt 0:09:09]} Qc8 {[%emt 0:11:23]} 11. Re1 {[%emt 0:06:40] A38: Symmetrical English vs ...g6: 4 Bg2 Bg7 5 Nf3 Nf6.} Bh3 {[%emt 0:01:21]} 12. Bb2 {[%emt 0:15:08]} Bxg2 {[%emt 0:03:33]} 13. Kxg2 {[%emt 0:00:02] The position is equal.} Ne4 $146 {[%emt 0:03:48][%cal Bf6e4,Be4g5,Bg5e6][%mdl 32]} (13... Re8 14. e4 Qd7 15. Qe2 Rad8 16. Rad1 Qc8 17. Ne3 e6 18. f3 a6 19. Rd2 Rd7 {1-0 Pinto,D (2198)-Vargas,J (1921) BOL-ch Sucre 2018 (3)}) 14. Na4 {[%emt 0:05:43][%cal Bc3a4,Ba4b2,Bb2d3,Bd3f2][%mdl 32]} Bxb2 {[%emt 0:05:55]} 15. Nxb2 {[%emt 0:00:14]} Qf5 {[%emt 0:02:44]} 16. Nd3 {[%emt 0:02:18] Successful Defense White} Ng5 {[%emt 0:16:20]} 17. f3 {[%emt 0:15:00]} e5 {[%emt 0:07:07]} 18. Nf2 {[%emt 0:03:39][%cal Oh2h4]} Rad8 {[%emt 0:05:27]} 19. Ne3 {[%emt 0:12:19]} Qd7 {[%emt 0:00:57]} 20. Qd2 {[%emt 0:00:42] White wants to play Nd5.} f5 {[%emt 0:01:07]} 21. Nd5 {[%emt 0:01:47]} Ne6 {[%emt 0:00:33]} 22. e3 {[%emt 0:00:41]} Qf7 {[%emt 0:04:41]} 23. Rad1 {[%emt 0:01:27]} f4 {[%emt 0:00:51]} 24. exf4 {[%emt 0:01:13]} exf4 $2 {[%emt 0:00:16][%mdl 8192] Black cannot hold the game after this.} (24... g5 $1 $14) 25. Ng4 $18 {[%emt 0:01:11]} Kh8 {[%emt 0:03:26] [#]} 26. Rxe6 {[%emt 0:01:16][%mdl 512]} Qxe6 {[%emt 0:00:28]} 27. Qc3+ {[%emt 0:01:00]} (27. gxf4 Qf7 $11) (27. Nxf4 Qe8 28. Qc3+ Ne5 $18) 27... Ne5 {[%emt 0:00:51]} 28. gxf4 {[%emt 0:00:08]} h5 {[%emt 0:02:20]} 29. Nf2 {[%emt 0:01:22] A dynamic duo of knights.} (29. Nxe5 dxe5 30. Qxe5+ Qxe5 31. fxe5 Rde8 $18) ({And not} 29. fxe5 hxg4 30. f4 (30. exd6+ $2 {perishes.} Kg8 $19) 30... dxe5 $11) 29... Kg8 {[%emt 0:05:45]} 30. fxe5 {[%emt 0:00:29]} dxe5 {[%emt 0:00:33]} 31. Ne4 {[%emt 0:04:44] White is clearly winning.} Kg7 {[%emt 0:01:43]} 32. Re1 {[%emt 0:00:47] [#]} Rfe8 {[%emt 0:06:38]} 33. h4 {[%emt 0:00:23]} Qf5 {[%emt 0:00:38]} 34. Ng5 {[%emt 0:00:25]} Kg8 {[%emt 0:01:02]} 35. Re4 {[%emt 0:00:33]} Rd7 {[%emt 0:02:05]} 36. Qa5 {[%emt 0:01:51]} b6 {[%emt 0:00:19]} 37. Qb5 {[%emt 0:00:29][%cal Ob5d7]} Kg7 {[%emt 0:00:58]} 38. Qc6 {[%emt 0:00:59]} Rdd8 {[%emt 0:00:11]} 39. Kg3 {[%emt 0:00:35] And now Nc7 would win.} Rd7 {[%emt 0:01:08]} 40. Ne3 {[%emt 0:00:40] Weighted Error Value: White=0.32/Black=0.77  Loses game:     	---       	Black=1      Inaccurate:     	White=1     	Black=4      OK:         	White=10    	Black=8      Best:        	White=1     	Black=2} 1-0

[Event "FIDE WSTC Open 50 2025"]
[Site "Prague"]
[Date "2025.02.17"]
[Round "1.21"]
[White "Mrva, Martin"]
[Black "Klimaszewski, Dariusz"]
[Result "1-0"]
[Annotator "TA"]
[ECO "E73"]
[WhiteElo "2394"]
[BlackElo "2152"]
[PlyCount "157"]
[EventDate "2025.02.17"]
[EventType "team-tourn"]
[EventCountry "CZE"]
[SourceTitle "playchess.com"]
[Source "ChessBase"]
[SourceQuality "1"]
[TimeControl "40/5400+30:1800+30"]

{[%evp 13,157,30,48,53,54,56,49,54,62,49,56,61,62,53,73,2,-3,0,0,-73,-66,-129,29,0,130,0,0,0,0,0,0,0,65,63,197,198,187,186,185,191,186,186,193,191,187,115,437,464,438,318,308,232,439,432,432,428,513,464,537,520,507,452,492,468,352,352,506,493,519,519,516,504,568,560,535,500,531,512,623,485,456,287,328,350,358,333,347,243,564,554,469,91,91,90,90,90,90,90,90,70,139,139,139,138,138,138,138,138,138,138,155,155,155,155,156,155,156,156,156,156,138,138,206,85,88,89,90,89,83,83,83,83,83,83,138,138,164,164,167,167,169,171,171,171,264,257]} 1. d4 {[%emt 0:00:04]} Nf6 {[%emt 0:00:54]} 2. c4 {[%emt 0:01:40]} g6 {[%emt 0:00:14]} 3. Nc3 {[%emt 0:00:06]} Bg7 {[%emt 0:00:18]} 4. e4 {[%emt 0:00:06]} d6 {[%emt 0:00:07]} 5. Be2 {[%emt 0:00:16]} O-O {[%emt 0:00:10]} 6. Be3 {[%emt 0:00:15]} c5 {[%emt 0:05:45]} 7. d5 {[%emt 0:00:40]} e6 {[%emt 0:01:02]} 8. Nf3 {[%emt 0:00:18] E73: King's Indian: Averbakh Variation without 6...c5.} Qe7 $146 {[%emt 0:00:44]} ({Predecessor:} 8... Re8 9. Nd2 Na6 10. O-O Nc7 11. Qc2 Rb8 12. a4 Na6 13. Rfe1 Nb4 14. Qb3 e5 15. h3 Nh5 16. Bxh5 gxh5 {0-1 Erigaisi,A (2778)-Indjic,A (2610) CrunchLab Masters PlayIn rapid 2024 (1)}) 9. Nd2 {[%emt 0:01:35]} a6 {[%emt 0:02:17]} 10. a4 {[%emt 0:07:33] White is slightly better.} a5 {[%emt 0:02:27]} 11. h4 {[%emt 0:09:26]} h5 {[%emt 0:02:42]} 12. Bg5 {[%emt 0:02:53]} Qd7 {[%emt 0:05:40]} 13. Ra3 {[%emt 0:16:41]} Na6 {[%emt 0:02:34]} 14. g4 {[%emt 0:07:50]} (14. O-O $16) 14... Nxg4 $11 {[%emt 0:02:04]} 15. Bxg4 {[%emt 0:00:36]} hxg4 {[%emt 0:00:12]} 16. h5 {[%emt 0:00:49] White sacrificed a pawn} (16. Qxg4 $11 Nb4 17. Kf1) 16... gxh5 $17 {[%emt 0:06:59]} 17. Rxh5 {[%emt 0:01:47]} ({White should try} 17. dxe6 $15 Qxe6 18. Nd5 (18. Rxh5 $2 Qg6 $19)) 17... e5 $2 {[%emt 0:00:54]} (17... f5 $17 {...Qe8 would now be deadly.} 18. Ke2 Nb4) 18. Bh6 {[%emt 0:18:51]} f6 {[%emt 0:04:18] Inhibits Rg5.} (18... Bxh6 $1 $11 {keeps the balance.} 19. Rxh6 Kg7) 19. Nf1 {[%emt 0:01:07]} (19. Nb5 $16) 19... Bxh6 $1 $11 {[%emt 0:01:18]} 20. Rxh6 {[%emt 0:00:05]} Qg7 $1 {[%emt 0:00:24] Dodges Ng3} 21. Qd2 {[%emt 0:03:14]} Nb4 {[%emt 0:00:24][%cal Ob4c2]} 22. Rh5 $1 $36 {[%emt 0:06:56][%mdl 2048] White has some pressure.} Bd7 {[%emt 0:05:08]} (22... Kf7 $11) 23. Nb5 $1 $14 {[%emt 0:01:53]} Ra6 {[%emt 0:15:26]} (23... Bxb5 $1 $14 24. cxb5 Kf7) 24. Ng3 $18 {[%emt 0:03:07]} Kf7 {[%emt 0:00:41]} 25. Nc7 {[%emt 0:08:33] Excellent horsemanship.} Rh8 {[%emt 0:00:38]} 26. Rxh8 {[%emt 0:01:19]} Qxh8 {[%emt 0:00:09]} 27. Nxa6 {[%emt 0:00:38]} bxa6 {[%emt 0:00:13] [#]} 28. Ke2 $1 {[%emt 0:01:15]} Qh2 {[%emt 0:04:34]} 29. Rc3 {[%emt 0:01:48]} (29. Qd1 $18) 29... Ke8 $2 {[%emt 0:02:13][%mdl 8192]} (29... Bxa4 $16 30. Nf5 Bd7) 30. b3 {[%emt 0:00:22]} Kd8 {[%emt 0:00:19][%cal Be8d8,Bd8c7,Bc7b6][%mdl 32]} 31. Qe1 {[%emt 0:01:29]} Qh6 {[%emt 0:01:52]} 32. Qc1 {[%emt 0:00:08]} Qh4 {[%emt 0:00:56]} (32... Qf8 {keeps fighting.} 33. Qh1 Na2) 33. Qe3 {[%emt 0:01:27]} Kc7 {[%emt 0:02:27]} 34. Rc1 {[%emt 0:01:07]} Qh2 {[%emt 0:00:31]} 35. Kd2 {[%emt 0:00:15]} Qg2 {[%emt 0:01:43]} 36. Qe2 {[%emt 0:00:44]} Kb6 {[%emt 0:00:51]} 37. Ke3 {[%emt 0:00:39]} Kc7 {[%emt 0:03:00]} 38. Qd1 {[%emt 0:00:27]} Kc8 {[%emt 0:04:44]} 39. Qh1 {[%emt 0:00:22]} Qxh1 {[%emt 0:00:09]} (39... Qh3 $142 40. Kd2 (40. Qxh3 gxh3 41. Kd2 Kd8 $18) 40... Kb7 41. Qxh3 gxh3) 40. Nxh1 {[%emt 0:00:16][%mdl 4096] Endgame KRN-KBN} f5 {[%emt 0:00:11]} 41. exf5 {[%emt 0:31:36]} Bxf5 {[%emt 0:30:14]} 42. Ng3 {[%emt 0:00:00]} Bc2 {[%emt 0:00:00]} 43. Ne4 {[%emt 0:00:00]} Bxb3 {[%emt 0:00:00]} 44. Rh1 {[%emt 0:00:00]} Bxa4 {[%emt 0:00:00]} 45. Rh7 {[%emt 0:00:00]} Bc2 {[%emt 0:00:00]} 46. Nxd6+ {[%emt 0:00:00]} Kb8 {[%emt 0:00:00]} 47. Rb7+ {[%emt 0:00:00]} Ka8 {[%emt 0:00:00]} 48. Rc7 {[%emt 0:00:00]} a4 {[%emt 0:00:00][%cal Ba5a4,Ba4a3,Ba3a2][%mdl 32]} 49. Rxc5 {[%emt 0:00:12]} a3 {[%emt 0:00:00]} 50. Ra5 {[%emt 0:00:14]} (50. Rc8+ $2 Ka7 51. Nb5+ axb5 $19) 50... Bb1 $2 {[%emt 0:00:00]} (50... a2 {is a better chance.} 51. Kd2 e4) 51. Kd2 {[%emt 0:01:37]} (51. Rxa3 $2 Nc2+ 52. Ke4 Nxa3+ $19) 51... a2 {[%emt 0:00:00]} 52. Nb5 {[%emt 0:00:15]} (52. Kc3 Nc2 $16) (52. Nf7 $18 {has better winning chances.}) 52... Kb7 $16 {[%emt 0:00:00]} 53. Nc3 {[%emt 0:00:22][%cal Oc3a2]} Kb6 {[%emt 0:00:00]} 54. Ra4 {[%emt 0:00:21]} a5 {[%emt 0:00:00]} 55. d6 {[%emt 0:00:54][%cal Oc3a2,Bd5d6,Bd6d7][%mdl 32]} Kc6 {[%emt 0:01:08]} 56. c5 {[%emt 0:00:05]} Kxc5 {[%emt 0:01:28]} (56... Nd3 $14) 57. d7 {[%emt 0:00:48] Chess con chili.} (57. Rxa5+ Kxd6 58. Ne2 Nc2 59. Ra6+ Ke7 $15) 57... Nc6 {[%emt 0:00:41]} 58. Nxa2 {[%emt 0:00:57][%cal Oa4a5] White is more active.} (58. Rxg4 $2 a1=Q (58... a1=B $2 {too greedy.} 59. Nxb1 Kd6 60. Rg7 $18) 59. Na4+ Kd6 $19) 58... Kd6 {[%emt 0:00:26]} 59. Nc3 {[%emt 0:01:28]} Bf5 {[%emt 0:00:26] [#]} 60. Rxa5 $1 {[%emt 0:00:40]} Kxd7 {[%emt 0:00:49]} 61. Ra6 {[%emt 0:00:15]} Kd6 {[%emt 0:02:17]} 62. Ke3 {[%emt 0:00:11]} Kc5 {[%emt 0:01:18]} 63. Ne4+ {[%emt 0:00:21]} Kd5 {[%emt 0:00:18]} 64. Nf6+ {[%emt 0:00:29]} Kc5 {[%emt 0:01:42]} 65. Ra8 {[%emt 0:00:50]} Ne7 {[%emt 0:00:45]} 66. Rd8 {[%emt 0:01:11] Inhibits Nd5+.} Kc6 {[%emt 0:00:48]} 67. Rd1 {[%emt 0:00:09]} Ng6 {[%emt 0:05:28]} (67... Kc5 $16 68. Nd7+ Bxd7) 68. Ne4 {[%emt 0:00:23]} (68. Ng8 $18) 68... Nf4 {[%emt 0:00:47]} 69. Ng3 {[%emt 0:00:41]} Bg6 {[%emt 0:01:32]} 70. Rd8 {[%emt 0:00:06]} Kc7 {[%emt 0:01:18]} 71. Ra8 {[%emt 0:01:09]} Kd7 {[%emt 0:00:57]} 72. Kd2 {[%emt 0:00:41]} Ke6 {[%emt 0:00:31]} 73. Nf1 {[%emt 0:00:24] Strongly threatening Ne3.} Nh3 {[%emt 0:03:24]} ({Black should play} 73... Bd3 74. Ng3 Kf6) 74. Ke1 {[%emt 0:00:52]} Kf6 {[%emt 0:05:49]} 75. Ne3 {[%emt 0:00:17]} Kg5 {[%emt 0:01:28]} 76. Ra5 {[%emt 0:00:39]} Kf4 {[%emt 0:00:22]} 77. Ng2+ {[%emt 0:00:09]} Ke4 {[%emt 0:03:07]} 78. Ra4+ {[%emt 0:00:04]} Kf5 {[%emt 0:00:15]} (78... Kd3 $142 79. Rxg4 Bf5) 79. Ne3+ {[%emt 0:01:04] Weighted Error Value: White=0.37/Black=0.46  Loses game:     	---       	Black=1      Missed win:     	White=1     	---        Mistake:       	White=6     	Black=11     Inaccurate:     	White=1     	---        OK:         	White=33    	Black=29     Best:        	White=4     	Black=4      Strong:       	White=2     	Black=2} 1-0

[Event "FIDE WSTC Open 50 2025"]
[Site "Prague"]
[Date "2025.02.17"]
[Round "1.22"]
[White "Gacek, Waldemar"]
[Black "Stohl, Igor"]
[Result "1/2-1/2"]
[Annotator "TA"]
[ECO "A05"]
[WhiteElo "2061"]
[BlackElo "2409"]
[PlyCount "30"]
[EventDate "2025.02.17"]
[EventType "team-tourn"]
[EventCountry "CZE"]
[SourceTitle "playchess.com"]
[Source "ChessBase"]
[SourceQuality "1"]
[TimeControl "40/5400+30:1800+30"]

{[%evp 9,30,0,0,0,27,16,29,10,14,25,120,52,57,61,68,47,67,54,52,47,48,34,54]} 1. Nf3 {[%emt 0:00:04]} Nf6 {[%emt 0:00:19]} 2. c4 {[%emt 0:00:06]} e6 {[%emt 0:00:38]} 3. e3 {[%emt 0:00:21]} d5 {[%emt 0:01:06]} 4. Nc3 {[%emt 0:00:32]} c5 {[%emt 0:00:40]} 5. cxd5 {[%emt 0:00:09]} exd5 {[%emt 0:00:03]} 6. Bb5+ {[%emt 0:01:00] A17: English Opening: 1...Nf6 with ...Bb4.} Bd7 {[%emt 0:01:52]} 7. Bxd7+ {[%emt 0:03:22]} Qxd7 {[%emt 0:02:05]} 8. d4 {[%emt 0:00:08] White has an edge.} Nc6 {[%emt 0:02:17]} 9. O-O {[%emt 0:03:34]} a6 {[%emt 0:04:04]} (9... Rc8 $11 {remains equal.}) 10. b3 $146 {[%emt 0:01:51]} (10. Na4 $16) (10. Re1 Be7 11. Ne5 Qc7 12. f4 O-O 13. Qf3 Rad8 14. Bd2 cxd4 15. Nxc6 bxc6 16. exd4 {0-1 Lewis,J (1047)-Alvarez Castillo,H (1850) LSS No Engine Cup 77 Preliminary 5 2012}) 10... cxd4 $14 {[%emt 0:16:57] White is slightly better.} 11. Nxd4 {[%emt 0:01:16]} Be7 {[%emt 0:00:37]} 12. Bb2 {[%emt 0:00:18]} O-O {[%emt 0:00:19]} 13. Rc1 {[%emt 0:05:23]} Rac8 {[%emt 0:14:31]} 14. Nxc6 {[%emt 0:23:21]} Rxc6 {[%emt 0:04:09]} 15. Qd3 {[%emt 0:06:38]} Rfc8 {[%emt 0:09:53] Weighted Error Value: White=0.14 (very precise) /Black=0.25 (precise)   Mistake:       	White=1     	Black=1      Inaccurate:     	---       	Black=1      OK:         	White=3     	Black=5} 1/2-1/2

[Event "FIDE WSTC Open 50 2025"]
[Site "Prague"]
[Date "2025.02.17"]
[Round "1.23"]
[White "Lipka, Juraj"]
[Black "Flis, Pawel"]
[Result "1-0"]
[Annotator "TA"]
[ECO "A05"]
[WhiteElo "2348"]
[BlackElo "1966"]
[PlyCount "111"]
[EventDate "2025.02.17"]
[EventType "team-tourn"]
[EventCountry "CZE"]
[SourceTitle "playchess.com"]
[Source "ChessBase"]
[SourceQuality "1"]
[TimeControl "40/5400+30:1800+30"]

{[%evp 20,111,39,30,34,1,60,58,70,62,69,50,104,91,109,97,104,70,86,34,38,0,63,41,95,90,181,0,39,36,39,44,49,42,45,26,97,67,68,81,81,61,83,80,108,70,118,125,156,143,146,126,109,113,120,104,294,294,291,293,291,291,288,289,291,291,367,366,372,371,375,368,370,367,361,360,769,763,747,727,1219,1133,5123,4708,5206,2633,29958,6311,29975,29976,29978,29979,29980,29981]} 1. Nf3 {[%emt 0:00:04]} Nf6 {[%emt 0:00:06]} 2. g3 {[%emt 0:00:16]} g6 {[%emt 0:00:05]} 3. b3 {[%emt 0:01:39]} Bg7 {[%emt 0:00:41]} 4. Bb2 {[%emt 0:00:08]} O-O {[%emt 0:00:07]} 5. Bg2 {[%emt 0:00:35]} c5 {[%emt 0:01:33]} 6. c4 {[%emt 0:03:37]} Nc6 {[%emt 0:00:26]} 7. O-O {[%emt 0:01:36]} d6 {[%emt 0:00:39]} 8. d4 {[%emt 0:01:46]} cxd4 {[%emt 0:01:21]} 9. Nxd4 {[%emt 0:00:18]} Nxd4 {[%emt 0:00:19]} 10. Qxd4 {[%emt 0:02:25]} Qa5 {[%emt 0:14:31]} 11. Nc3 {[%emt 0:16:19]} Be6 {[%emt 0:20:47][%cal Of6d5] E60: King's Indian: Unusual lines and Fianchetto Variation without Nc3.} 12. Rac1 {[%emt 0:23:59]} Ng4 {[%emt 0:15:25]} ({Black should play} 12... Rab8 $11) 13. Qd2 $14 {[%emt 0:07:01]} Qh5 {[%emt 0:02:04][%csl Gg4][%cal Rh5h2] [#] White is slightly better.} 14. h3 {[%emt 0:04:01][%cal Bh2h3,Bh3h4,Bh4g5][%mdl 32] Successful Defense White} (14. Bxb7 $2 Qxh2#) 14... Nf6 {[%emt 0:08:06]} 15. h4 $146 {[%emt 0:04:08]} (15. Kh2 Rac8 16. Nd5 Nxd5 17. Bxg7 Kxg7 18. cxd5 Bd7 19. Rc3 Qe5 20. Rfc1 Rxc3 21. Rxc3 {0-1 Guevara,C (2126)-Arias,L (2252) Managua Sub zt 2.3.2 2001 (7)}) 15... Bh6 {[%emt 0:06:17]} (15... Rab8 $14) 16. e3 $16 {[%emt 0:04:26]} g5 {[%emt 0:06:14]} 17. hxg5 {[%emt 0:05:18]} (17. Bxb7 gxh4 18. Ne2 (18. Bxa8 Rxa8 19. Ne2 Ng4 $11) 18... Rab8 (18... hxg3 $2 19. Nxg3 Qg6 20. Bxa8 $18) 19. Bxf6 exf6 $19) 17... Ng4 {[%emt 0:03:59][%csl Gg4][%cal Rh5h2] [#]} 18. Rfe1 {[%emt 0:00:38]} Bxg5 {[%emt 0:03:38]} 19. Ne4 {[%emt 0:03:13]} (19. Bxb7 Qh2+ 20. Kf1 d5 21. Bxd5 Ne5 $11) (19. Nd5 $1 $16) 19... Bh6 $14 {[%emt 0:06:28]} 20. Qe2 {[%emt 0:09:23]} f5 {[%emt 0:04:28]} (20... Qh2+ $11 21. Kf1 Ne5) 21. Nd2 $1 {[%emt 0:01:04]} Qh2+ {[%emt 0:01:47]} (21... Rad8 $14 {is superior.}) 22. Kf1 $16 {[%emt 0:00:05]} Rab8 {[%emt 0:01:18]} (22... Rad8 $16 {might work better.}) 23. Qf3 $2 {[%emt 0:03:27]} (23. c5 $18) 23... Qh5 {[%emt 0:00:27]} 24. Ke2 {[%emt 0:00:25]} Qf7 {[%emt 0:00:49]} 25. Rh1 {[%emt 0:01:06] Against Nh2} Bg7 {[%emt 0:00:28] Prevents Kf1} 26. Bxg7 {[%emt 0:00:35]} Qxg7 {[%emt 0:00:21]} 27. Qf4 {[%emt 0:00:38]} Qe5 {[%emt 0:00:37] Dodges Bd5} (27... Bf7 $11 {remains equal.}) 28. Qg5+ {[%emt 0:00:55]} (28. Qxe5 {simplifies} Nxe5 29. Rh4 Bf7 30. f4) 28... Qg7 {[%emt 0:00:13]} 29. Qxg7+ {[%emt 0:00:29]} Kxg7 {[%emt 0:00:01]} 30. Nf3 {[%emt 0:00:25]} b6 {[%emt 0:01:06]} 31. Nd4 {[%emt 0:01:49]} Bd7 {[%emt 0:00:09]} 32. Bd5 {[%emt 0:02:17]} e5 {[%emt 0:00:49]} (32... Kg6 $14) 33. Nb5 {[%emt 0:01:06] White is much more active.} Bxb5 {[%emt 0:00:38] Counterplay White} 34. cxb5 {[%emt 0:00:06]} Rbc8 {[%emt 0:00:14] Against Rc7+} 35. Rc6 {[%emt 0:00:48]} Rxc6 {[%emt 0:00:42]} 36. bxc6 {[%emt 0:00:35][%mdl 4096] Endgame KRB-KRN} Rc8 {[%emt 0:00:21]} 37. e4 {[%emt 0:01:25]} fxe4 $2 {[%emt 0:00:13] A mistake that costs the game.} (37... Nf6 $16) 38. Be6 $1 $18 {[%emt 0:00:29]} ({Not} 38. Bxe4 Nf6 39. Bg2 d5 $14) 38... Rxc6 {[%emt 0:00:17] White must now prevent ...Rc2+.} 39. Bxg4 {[%emt 0:00:04] KRB-KR} Rc2+ {[%emt 0:00:19]} 40. Ke3 {[%emt 0:00:50]} d5 {[%emt 0:01:20][%cal Bd6d5,Bd5d4][%mdl 32]} 41. Rd1 {[%emt 0:03:48]} Rc3+ {[%emt 0:06:28]} 42. Kd2 {[%emt 0:13:37]} d4 {[%emt 0:11:24]} 43. Re1 {[%emt 0:02:40]} Rd3+ {[%emt 0:05:05]} 44. Kc2 {[%emt 0:00:51]} Rc3+ {[%emt 0:02:12]} 45. Kb2 {[%emt 0:01:20]} Rd3 {[%emt 0:04:35]} 46. Rd1 {[%emt 0:01:39] Dodges Rd2+} Rc3 {[%emt 0:00:41]} 47. Rc1 {[%emt 0:01:40]} Rd3 {[%emt 0:00:21]} ({Much weaker is} 47... h5 48. Bxh5 Rc5 49. Rxc5 bxc5 50. Bg4 $18) (47... Rxc1 48. Kxc1 Kf6) 48. Rc7+ {[%emt 0:01:09]} Kf6 {[%emt 0:01:21]} 49. Kc2 {[%emt 0:00:28]} (49. Rxa7 Rd2+ 50. Ka3 Rxf2 51. Rxh7 e3 $17) 49... a5 {[%emt 0:02:48]} 50. Be2 {[%emt 0:00:18]} Rc3+ {[%emt 0:00:27]} 51. Rxc3 {[%emt 0:00:05]} dxc3 {[%emt 0:00:03]} 52. Kxc3 {[%emt 0:00:08] Threatens to win with a4.} Kf5 {[%emt 0:00:41]} 53. Kd2 {[%emt 0:00:11] Threatening mate with a4.} Ke6 {[%emt 0:00:52]} 54. Ke3 {[%emt 0:00:37] White mates.} Kd5 {[%emt 0:00:13]} 55. Bc4+ {[%emt 0:00:17]} Kc5 {[%emt 0:00:05]} 56. a4 {[%emt 0:00:17] Weighted Error Value: White=0.16 (very precise) /Black=0.73  Loses game:     	---       	Black=1      Missed win:     	White=1     	---        Mistake:       	White=1     	Black=8      Inaccurate:     	White=5     	Black=1      OK:         	White=14    	Black=15     Best:        	White=5     	Black=2      Strong:       	White=2     	---} 1-0